[Event "*** Titled Tuesday 3|2 Blitz"]
[Site "Chess.com"]
[Date "2015.02.24"]
[Round "7"]
[White "tigrangharamian"]
[Black "megarompa"]
[Result "0-1"]
[WhiteElo "2524"]
[BlackElo "2659"]
[TimeControl "180+2"]
[EndTime "12:30:44 PST"]
[Termination "megarompa won by resignation"]

1. e4 {[%clk 0:03:00]} 1... c5 {[%clk 0:02:58]} 2. Nf3 {[%clk 0:03:01.5]} 2...
e6 {[%clk 0:02:59]} 3. d4 {[%clk 0:03:01.3]} 3... cxd4 {[%clk 0:03:00.9]} 4.
Nxd4 {[%clk 0:03:03]} 4... Nf6 {[%clk 0:03:01.3]} 5. Nc3 {[%clk 0:03:03.8]} 5...
Nc6 {[%clk 0:03:02.7]} 6. Nxc6 {[%clk 0:03:02.1]} 6... bxc6 {[%clk 0:03:03]} 7.
e5 {[%clk 0:03:03.5]} 7... Nd5 {[%clk 0:03:03.3]} 8. Ne4 {[%clk 0:03:04.2]} 8...
f5 {[%clk 0:03:04.5]} 9. exf6 {[%clk 0:03:03.4]} 9... Nxf6 {[%clk 0:03:06.1]}
10. Nd6+ {[%clk 0:03:04.7]} 10... Bxd6 {[%clk 0:03:04.2]} 11. Qxd6 {[%clk
0:03:06.6]} 11... Ba6 {[%clk 0:03:05.7]} 12. Bxa6 {[%clk 0:02:56.4]} 12... Qa5+
{[%clk 0:03:05.6]} 13. b4 {[%clk 0:02:56.5]} 13... Qxa6 {[%clk 0:03:07.5]} 14.
Bb2 {[%clk 0:02:56.5]} 14... Nd5 {[%clk 0:02:59.1]} 15. O-O-O {[%clk 0:02:48.5]}
15... O-O-O {[%clk 0:02:54.3]} 16. Rd3 {[%clk 0:02:33.2]} 16... Qb5 {[%clk
0:02:37.7]} 17. Be5 {[%clk 0:02:21.4]} 17... Kb7 {[%clk 0:02:34.3]} 18. a3
{[%clk 0:02:03.9]} 18... Ka8 {[%clk 0:02:25.6]} 19. g3 {[%clk 0:01:54.1]} 19...
Rhf8 {[%clk 0:02:21.5]} 20. f4 {[%clk 0:01:55.3]} 20... Rf7 {[%clk 0:02:22.1]}
21. Re1 {[%clk 0:01:49.4]} 21... Rc8 {[%clk 0:02:18.1]} 22. Re4 {[%clk
0:01:35.9]} 22... Nb6 {[%clk 0:02:12.6]} 23. Qc5 {[%clk 0:01:28.5]} 23... d5
{[%clk 0:02:05.5]} 24. Re1 {[%clk 0:01:18.5]} 24... Qxc5 {[%clk 0:02:00.1]} 25.
bxc5 {[%clk 0:01:19.5]} 25... Nc4 {[%clk 0:02:02]} 26. Bd4 {[%clk 0:01:03.4]}
26... Re8 {[%clk 0:01:58.3]} 27. Re2 {[%clk 0:00:58.8]} 27... g6 {[%clk
0:01:55.4]} 28. Rd1 {[%clk 0:00:59.1]} 28... Kb7 {[%clk 0:01:56.4]} 29. Rde1
{[%clk 0:01:00.4]} 29... Nxa3 {[%clk 0:01:37.5]} 30. Rxe6 {[%clk 0:00:58]} 30...
Rxe6 {[%clk 0:01:39.4]} 31. Rxe6 {[%clk 0:00:59.4]} 31... Nc4 {[%clk 0:01:41.3]}
32. Re8 {[%clk 0:00:51.4]} 32... g5 {[%clk 0:01:40]} 33. Be5 {[%clk 0:00:46.7]}
33... gxf4 {[%clk 0:01:38.6]} 34. Bxf4 {[%clk 0:00:47.1]} 34... a5 {[%clk
0:01:35.6]} 35. Kb1 {[%clk 0:00:39.5]} 35... a4 {[%clk 0:01:33.3]} 36. Ka2
{[%clk 0:00:39.1]} 36... Ka6 {[%clk 0:01:33.5]} 37. Rb8 {[%clk 0:00:34.6]} 37...
h5 {[%clk 0:01:29.7]} 38. Rb4 {[%clk 0:00:32]} 38... Ka5 {[%clk 0:01:27.9]} 39.
Rb8 {[%clk 0:00:33.3]} 39... Re7 {[%clk 0:01:29.4]} 40. Rh8 {[%clk 0:00:27.7]}
40... Re2 {[%clk 0:01:26.6]} 41. Rxh5 {[%clk 0:00:24.5]} 41... Rxc2+ {[%clk
0:01:23.9]} 42. Kb1 {[%clk 0:00:26]} 42... Na3+ {[%clk 0:01:21.3]} 43. Ka1
{[%clk 0:00:26.9]} 43... Re2 {[%clk 0:01:17.4]} 44. Bc1 {[%clk 0:00:19.4]} 44...
Nb5 {[%clk 0:01:15.2]} 45. Bb2 {[%clk 0:00:16.2]} 45... a3 {[%clk 0:01:15.9]}
46. Bf6 {[%clk 0:00:16.6]} 46... Ka4 {[%clk 0:01:11.4]} 47. Re5 {[%clk 0:00:07]}
47... Rf2 {[%clk 0:01:12.2]} 48. Bg7 {[%clk 0:00:05.9]} 48... Kb3 {[%clk
0:01:07]} 49. Re3+ {[%clk 0:00:06.6]} 49... Kc4 {[%clk 0:01:08.6]} 50. h4 {[%clk
0:00:06.7]} 50... d4 {[%clk 0:01:09.2]} 51. Re4 {[%clk 0:00:07.4]} 51... Kb3
{[%clk 0:01:07.1]} 52. Re1 {[%clk 0:00:05.7]} 52... Ra2+ {[%clk 0:01:06.4]} 0-1

[Event "*** Titled Tuesday 3|2 Blitz"]
[Site "Chess.com"]
[Date "2015.02.24"]
[Round "7"]
[White "Gevorg_Harutjunyan"]
[Black "GMNeiksans"]
[Result "1-0"]
[WhiteElo "2518"]
[BlackElo "2494"]
[TimeControl "180+2"]
[EndTime "12:31:11 PST"]
[Termination "Gevorg_Harutjunyan won on time"]

1. e4 {[%clk 0:02:58.4]} 1... c5 {[%clk 0:02:58.4]} 2. Nc3 {[%clk 0:02:59.4]}
2... Nc6 {[%clk 0:02:58]} 3. Nf3 {[%clk 0:03:00.5]} 3... Nf6 {[%clk 0:02:51]} 4.
Bb5 {[%clk 0:02:59.9]} 4... Nd4 {[%clk 0:02:45.7]} 5. e5 {[%clk 0:03:00.4]} 5...
Nxb5 {[%clk 0:02:46.2]} 6. Nxb5 {[%clk 0:03:02.3]} 6... Nd5 {[%clk 0:02:47]} 7.
Ng5 {[%clk 0:03:03.5]} 7... h6 {[%clk 0:02:29.9]} 8. Nxf7 {[%clk 0:02:23.8]}
8... Kxf7 {[%clk 0:02:30.8]} 9. Qf3+ {[%clk 0:02:24.8]} 9... Nf6 {[%clk
0:02:18.4]} 10. exf6 {[%clk 0:02:20.9]} 10... gxf6 {[%clk 0:02:19.5]} 11. Qh5+
{[%clk 0:02:18.4]} 11... Kg8 {[%clk 0:02:09.8]} 12. a4 {[%clk 0:02:16.7]} 12...
a6 {[%clk 0:02:02]} 13. Nc3 {[%clk 0:02:11.3]} 13... e6 {[%clk 0:01:59]} 14. d3
{[%clk 0:02:00.8]} 14... d5 {[%clk 0:01:50.8]} 15. h4 {[%clk 0:01:53.2]} 15...
Bd7 {[%clk 0:01:43.5]} 16. Rh3 {[%clk 0:01:53.2]} 16... Qe8 {[%clk 0:01:41.6]}
17. Rg3+ {[%clk 0:01:48.7]} 17... Kh7 {[%clk 0:01:35.9]} 18. Qf3 {[%clk
0:01:47.5]} 18... Qf7 {[%clk 0:01:33.8]} 19. Bf4 {[%clk 0:01:40.1]} 19... Rg8
{[%clk 0:01:31.4]} 20. h5 {[%clk 0:01:31.7]} 20... Rxg3 {[%clk 0:01:29.8]} 21.
Bxg3 {[%clk 0:01:32.8]} 21... Bg7 {[%clk 0:01:25.5]} 22. O-O-O {[%clk 0:01:33]}
22... b5 {[%clk 0:01:13.2]} 23. a5 {[%clk 0:01:33.1]} 23... b4 {[%clk 0:01:12]}
24. Ne4 {[%clk 0:01:31]} 24... Bb5 {[%clk 0:00:41.8]} 25. Nxc5 {[%clk
0:01:26.8]} 25... Rc8 {[%clk 0:00:42.7]} 26. d4 {[%clk 0:01:28.3]} 26... f5
{[%clk 0:00:39.3]} 27. Re1 {[%clk 0:01:24.2]} 27... Bxd4 {[%clk 0:00:33.6]} 28.
Nxe6 {[%clk 0:01:24.9]} 28... Bh8 {[%clk 0:00:33.5]} 29. Nc7 {[%clk 0:01:17]}
29... Bc4 {[%clk 0:00:19.1]} 30. Kb1 {[%clk 0:00:34.5]} 30... Kg8 {[%clk
0:00:08.4]} 31. Bd6 {[%clk 0:00:30.5]} 31... Bg7 {[%clk 0:00:09.5]} 32. Qg3
{[%clk 0:00:26.9]} 32... Qf6 {[%clk 0:00:08.2]} 33. Be5 {[%clk 0:00:24.6]} 33...
Qg5 {[%clk 0:00:09.5]} 34. Qxg5 {[%clk 0:00:15.5]} 34... hxg5 {[%clk 0:00:10.5]}
35. Bxg7 {[%clk 0:00:08.2]} 35... Kxg7 {[%clk 0:00:09.8]} 36. Re7+ {[%clk
0:00:07.5]} 36... Kf6 {[%clk 0:00:11.2]} 37. Rh7 {[%clk 0:00:08.8]} 37... b3
{[%clk 0:00:10.7]} 38. cxb3 {[%clk 0:00:09.5]} 38... Bxb3 {[%clk 0:00:11.9]} 39.
Nxa6 {[%clk 0:00:10.2]} 39... d4 {[%clk 0:00:11.8]} 40. Nb4 {[%clk 0:00:10.4]}
40... d3 {[%clk 0:00:12.5]} 41. Rd7 {[%clk 0:00:11.4]} 41... Re8 {[%clk
0:00:09]} 42. Nxd3 {[%clk 0:00:11.1]} 42... Re2 {[%clk 0:00:09.9]} 43. a6 {[%clk
0:00:09.1]} 43... Rd2 {[%clk 0:00:10.5]} 44. a7 {[%clk 0:00:10.1]} 44... Rd1+
{[%clk 0:00:11.6]} 45. Nc1 {[%clk 0:00:11.5]} 45... Rxd7 {[%clk 0:00:10.4]} 46.
a8=Q {[%clk 0:00:12.5]} 1-0

[Event "*** Titled Tuesday 3|2 Blitz"]
[Site "Chess.com"]
[Date "2015.02.24"]
[Round "7"]
[White "1stSecond"]
[Black "AnthonyWirig"]
[Result "1-0"]
[WhiteElo "2390"]
[BlackElo "2519"]
[TimeControl "180+2"]
[EndTime "12:31:18 PST"]
[Termination "1stSecond won by resignation"]

1. d4 {[%clk 0:03:00]} 1... Nf6 {[%clk 0:02:58.7]} 2. c4 {[%clk 0:03:01.5]} 2...
Nc6 {[%clk 0:03:00]} 3. Nf3 {[%clk 0:03:01.8]} 3... d6 {[%clk 0:03:00.9]} 4. Nc3
{[%clk 0:03:02.5]} 4... e5 {[%clk 0:03:02.1]} 5. g3 {[%clk 0:03:03.4]} 5... Bg4
{[%clk 0:03:02.3]} 6. d5 {[%clk 0:03:00.7]} 6... Ne7 {[%clk 0:03:03.2]} 7. Qb3
{[%clk 0:02:58.6]} 7... Qc8 {[%clk 0:02:58.4]} 8. Nd2 {[%clk 0:02:52.1]} 8...
Nd7 {[%clk 0:02:43.7]} 9. f3 {[%clk 0:02:48]} 9... Bh5 {[%clk 0:02:37.1]} 10. g4
{[%clk 0:02:47.9]} 10... Bg6 {[%clk 0:02:37.8]} 11. Bg2 {[%clk 0:02:41.2]} 11...
Nc5 {[%clk 0:02:35]} 12. Qd1 {[%clk 0:02:39.3]} 12... a5 {[%clk 0:02:34.9]} 13.
Nb3 {[%clk 0:02:38.2]} 13... Nd7 {[%clk 0:02:26.8]} 14. Be3 {[%clk 0:02:36.9]}
14... h5 {[%clk 0:02:27.6]} 15. h3 {[%clk 0:02:36.8]} 15... a4 {[%clk
0:02:25.5]} 16. Nd2 {[%clk 0:02:35.4]} 16... a3 {[%clk 0:02:26.4]} 17. b4 {[%clk
0:02:35.5]} 17... f5 {[%clk 0:02:19.8]} 18. Bg5 {[%clk 0:02:33.7]} 18... Nf6
{[%clk 0:02:12.9]} 19. gxf5 {[%clk 0:02:31.4]} 19... Nxf5 {[%clk 0:02:05.4]} 20.
h4 {[%clk 0:02:30]} 20... Nd4 {[%clk 0:01:57.7]} 21. Rc1 {[%clk 0:02:28.8]}
21... Nh7 {[%clk 0:01:39.7]} 22. e3 {[%clk 0:02:29.2]} 22... Nxg5 {[%clk
0:01:37.5]} 23. hxg5 {[%clk 0:02:31.1]} 23... Nf5 {[%clk 0:01:37.3]} 24. Kf2
{[%clk 0:02:28.5]} 24... Be7 {[%clk 0:01:33.6]} 25. Nde4 {[%clk 0:02:27.8]}
25... O-O {[%clk 0:01:30.2]} 26. Qb3 {[%clk 0:02:22.6]} 26... Qd8 {[%clk
0:01:29.2]} 27. Bh3 {[%clk 0:02:13.6]} 27... Bxg5 {[%clk 0:01:09.2]} 28. Nxg5
{[%clk 0:02:13.9]} 28... Qxg5 {[%clk 0:01:07.9]} 29. Ne4 {[%clk 0:02:15.1]}
29... Qh6 {[%clk 0:00:52.7]} 30. Rcg1 {[%clk 0:02:13.9]} 30... Ne7 {[%clk
0:00:49.4]} 31. Be6+ {[%clk 0:02:10.9]} 31... Kh8 {[%clk 0:00:44.7]} 32. Ng5
{[%clk 0:02:09.8]} 32... Rf6 {[%clk 0:00:39.8]} 33. e4 {[%clk 0:02:02.4]} 33...
Raf8 {[%clk 0:00:39.4]} 34. Ke2 {[%clk 0:01:59.6]} 34... Be8 {[%clk 0:00:23.2]}
35. Qxa3 {[%clk 0:01:56.7]} 35... Ng6 {[%clk 0:00:24.5]} 36. Qe3 {[%clk
0:01:48.5]} 36... Nf4+ {[%clk 0:00:25.4]} 37. Kd2 {[%clk 0:01:50.1]} 37... Rg6
{[%clk 0:00:26.8]} 38. Nh3 {[%clk 0:01:38.3]} 38... Rxg1 {[%clk 0:00:21.5]} 39.
Rxg1 {[%clk 0:01:35]} 39... b6 {[%clk 0:00:18.7]} 40. Ng5 {[%clk 0:01:33.8]}
40... Rf6 {[%clk 0:00:16.8]} 41. Bf5 {[%clk 0:01:33.1]} 41... g6 {[%clk
0:00:17.4]} 42. Be6 {[%clk 0:01:33]} 42... Qf8 {[%clk 0:00:17]} 43. b5 {[%clk
0:01:30.5]} 43... Kg7 {[%clk 0:00:16.4]} 44. Bf5 {[%clk 0:01:26.5]} 44... Qe7
{[%clk 0:00:15.4]} 45. Ne6+ {[%clk 0:01:25.4]} 45... Nxe6 {[%clk 0:00:16.6]} 46.
dxe6 {[%clk 0:01:27.3]} 46... Kh7 {[%clk 0:00:17.8]} 47. Qg5 {[%clk 0:01:26.2]}
47... Kg7 {[%clk 0:00:13.4]} 48. Qxh5 {[%clk 0:01:24.6]} 48... Rxe6 {[%clk
0:00:11.4]} 49. Bxe6 {[%clk 0:01:24.6]} 49... Qxe6 {[%clk 0:00:13.3]} 50. Qh4
{[%clk 0:01:10.6]} 50... Qxc4 {[%clk 0:00:09.6]} 51. Rh1 {[%clk 0:01:12.1]}
51... Qxa2+ {[%clk 0:00:08.3]} 52. Ke3 {[%clk 0:01:12.3]} 52... Qb3+ {[%clk
0:00:07.1]} 53. Kf2 {[%clk 0:01:13.7]} 53... Qg8 {[%clk 0:00:04.3]} 54. Qd8
{[%clk 0:01:10.7]} 54... Bf7 {[%clk 0:00:04.4]} 55. Qxc7 {[%clk 0:01:11.2]}
55... Qa8 {[%clk 0:00:05]} 56. Qxd6 {[%clk 0:01:10.2]} 56... Qa2+ {[%clk
0:00:06.2]} 57. Kg3 {[%clk 0:01:11.2]} 57... Qb2 {[%clk 0:00:07.4]} 58. Qd8
{[%clk 0:01:10.2]} 58... Bg8 {[%clk 0:00:05]} 59. Qxb6 {[%clk 0:01:10.6]} 59...
Qd2 {[%clk 0:00:04.1]} 60. Qc7+ {[%clk 0:01:11.2]} 60... Bf7 {[%clk 0:00:05.5]}
61. Qxe5+ {[%clk 0:01:11.5]} 1-0

[Event "*** Titled Tuesday 3|2 Blitz"]
[Site "Chess.com"]
[Date "2015.02.24"]
[Round "7"]
[White "raskolnnikov"]
[Black "juniortay"]
[Result "1/2-1/2"]
[WhiteElo "2274"]
[BlackElo "2196"]
[TimeControl "180+2"]
[EndTime "12:31:38 PST"]
[Termination "Game drawn by agreement"]

1. d4 {[%clk 0:03:00]} 1... Nf6 {[%clk 0:02:58.7]} 2. c4 {[%clk 0:03:01.2]} 2...
d6 {[%clk 0:02:59.9]} 3. Nc3 {[%clk 0:03:02.4]} 3... Nbd7 {[%clk 0:03:01.7]} 4.
Nf3 {[%clk 0:03:03.8]} 4... e5 {[%clk 0:03:02.8]} 5. e4 {[%clk 0:03:05.4]} 5...
Be7 {[%clk 0:03:04.2]} 6. Be2 {[%clk 0:03:06]} 6... O-O {[%clk 0:03:05.7]} 7.
O-O {[%clk 0:03:07.7]} 7... c6 {[%clk 0:03:07.3]} 8. Re1 {[%clk 0:03:09]} 8...
a6 {[%clk 0:03:08.2]} 9. h3 {[%clk 0:03:10.1]} 9... Qc7 {[%clk 0:02:53]} 10. a4
{[%clk 0:03:10.4]} 10... a5 {[%clk 0:02:53.4]} 11. Bg5 {[%clk 0:03:10.5]} 11...
Re8 {[%clk 0:02:54.1]} 12. Qd2 {[%clk 0:03:10.7]} 12... exd4 {[%clk 0:02:49.1]}
13. Nxd4 {[%clk 0:03:11.2]} 13... Nc5 {[%clk 0:02:50.7]} 14. Qc2 {[%clk
0:03:10.6]} 14... h6 {[%clk 0:02:43]} 15. Be3 {[%clk 0:03:09.6]} 15... Bf8
{[%clk 0:02:40.5]} 16. Bf3 {[%clk 0:03:06.9]} 16... g6 {[%clk 0:02:24.6]} 17.
Nb3 {[%clk 0:03:05.5]} 17... Na6 {[%clk 0:02:17.9]} 18. Rad1 {[%clk 0:03:04.5]}
18... Be6 {[%clk 0:01:40.5]} 19. Na2 {[%clk 0:02:49.1]} 19... Nd7 {[%clk
0:01:34.1]} 20. Rc1 {[%clk 0:02:47]} 20... Nb4 {[%clk 0:01:15.9]} 21. Nxb4
{[%clk 0:02:47.7]} 21... axb4 {[%clk 0:01:17.8]} 22. a5 {[%clk 0:02:49.6]} 22...
c5 {[%clk 0:01:08.7]} 23. Be2 {[%clk 0:02:42.2]} 23... Ne5 {[%clk 0:01:07.4]}
24. f4 {[%clk 0:02:42.4]} 24... Nc6 {[%clk 0:01:06.8]} 25. f5 {[%clk 0:02:42.4]}
25... Bc8 {[%clk 0:01:06.5]} 26. fxg6 {[%clk 0:02:39]} 26... fxg6 {[%clk
0:01:08.4]} 27. Qd2 {[%clk 0:02:36.2]} 27... Kh7 {[%clk 0:01:04.1]} 28. Ra1
{[%clk 0:02:33.1]} 28... Bg7 {[%clk 0:00:58.6]} 29. e5 {[%clk 0:02:23.3]} 29...
Nxe5 {[%clk 0:00:58.8]} 30. Bf4 {[%clk 0:02:21.5]} 30... Bf5 {[%clk 0:00:44]}
31. Rad1 {[%clk 0:02:20]} 31... Rad8 {[%clk 0:00:43.7]} 32. Bf1 {[%clk
0:01:50.2]} 32... Qf7 {[%clk 0:00:43.6]} 33. Qd5 {[%clk 0:01:41]} 33... Be6
{[%clk 0:00:43.3]} 34. Qd2 {[%clk 0:01:36.6]} 34... Nxc4 {[%clk 0:00:43]} 35.
Bxc4 {[%clk 0:01:33.8]} 35... Bxc4 {[%clk 0:00:44.9]} 36. Nc1 {[%clk 0:01:29.8]}
36... d5 {[%clk 0:00:38.1]} 37. Rxe8 {[%clk 0:01:22]} 37... Rxe8 {[%clk
0:00:38.5]} 38. b3 {[%clk 0:01:22.4]} 38... Bb5 {[%clk 0:00:33.3]} 39. Bd6
{[%clk 0:01:23.2]} 39... c4 {[%clk 0:00:28]} 40. Bxb4 {[%clk 0:01:20.4]} 40...
cxb3 {[%clk 0:00:20.9]} 41. Nxb3 {[%clk 0:01:21.7]} 41... Re2 {[%clk 0:00:17]}
42. Qxd5 {[%clk 0:01:15]} 42... Qxd5 {[%clk 0:00:11.9]} 43. Rxd5 {[%clk
0:01:15.6]} 43... Bc6 {[%clk 0:00:13.8]} 44. Rd3 {[%clk 0:01:08.1]} 44... Rxg2+
{[%clk 0:00:13.4]} 45. Kf1 {[%clk 0:01:09.5]} 45... Rb2 {[%clk 0:00:13.7]} 46.
Re3 {[%clk 0:01:07]} 46... Ba4 {[%clk 0:00:11.9]} 47. Nc5 {[%clk 0:01:00.7]}
47... Rxb4 {[%clk 0:00:12.4]} 48. Re7 {[%clk 0:01:02.5]} 48... Rf4+ {[%clk
0:00:08.2]} 49. Ke2 {[%clk 0:01:01.1]} 49... Bb5+ {[%clk 0:00:08.8]} 50. Ke3
{[%clk 0:01:02.2]} 50... Rf8 {[%clk 0:00:07.2]} 51. Rxb7 {[%clk 0:00:59.9]}
51... Re8+ {[%clk 0:00:07]} 52. Kd2 {[%clk 0:00:59.2]} 52... Rd8+ {[%clk
0:00:06.3]} 53. Kc1 {[%clk 0:00:55.5]} 53... Bc6 {[%clk 0:00:06.1]} 54. Rxg7+
{[%clk 0:00:55.7]} 54... Kxg7 {[%clk 0:00:05.7]} 55. Ne6+ {[%clk 0:00:56.7]}
55... Kf6 {[%clk 0:00:06.9]} 56. Nxd8 {[%clk 0:00:58.6]} 56... Bd5 {[%clk
0:00:07.5]} 57. Kd2 {[%clk 0:00:59.4]} 57... Kg5 {[%clk 0:00:08.8]} 58. Ke3
{[%clk 0:01:00.2]} 58... Kh4 {[%clk 0:00:10]} 59. Kd4 {[%clk 0:01:01]} 59... Bg2
{[%clk 0:00:10.8]} 60. Nf7 {[%clk 0:01:01.6]} 60... h5 {[%clk 0:00:11.2]} 61.
Ne5 {[%clk 0:01:02.1]} 61... Ba8 {[%clk 0:00:10.6]} 62. Nxg6+ {[%clk 0:01:03]}
62... Kxh3 {[%clk 0:00:11.5]} 63. Nf4+ {[%clk 0:01:04.5]} 63... Kg4 {[%clk
0:00:12.2]} 64. Nxh5 {[%clk 0:01:05.7]} 64... Kxh5 {[%clk 0:00:13.5]} 65. Kc5
{[%clk 0:01:07.6]} 65... Be4 {[%clk 0:00:12.6]} 66. Kb6 {[%clk 0:01:09.5]} 66...
Kg4 {[%clk 0:00:12.9]} 1/2-1/2

[Event "*** Titled Tuesday 3|2 Blitz"]
[Site "Chess.com"]
[Date "2015.02.24"]
[Round "7"]
[White "GasconJR"]
[Black "gumersindo"]
[Result "1-0"]
[WhiteElo "2276"]
[BlackElo "2113"]
[TimeControl "180+2"]
[EndTime "12:31:55 PST"]
[Termination "GasconJR won by resignation"]

1. e4 {[%clk 0:03:00]} 1... e5 {[%clk 0:02:58.6]} 2. Nf3 {[%clk 0:03:00.8]} 2...
Nc6 {[%clk 0:02:59.2]} 3. d4 {[%clk 0:03:02.2]} 3... exd4 {[%clk 0:02:59.9]} 4.
Nxd4 {[%clk 0:03:04]} 4... Nf6 {[%clk 0:03:00.2]} 5. Nxc6 {[%clk 0:03:05.2]}
5... bxc6 {[%clk 0:03:01]} 6. e5 {[%clk 0:03:06.9]} 6... Qe7 {[%clk 0:03:01.5]}
7. Qe2 {[%clk 0:03:08.6]} 7... Nd5 {[%clk 0:03:02.2]} 8. c4 {[%clk 0:03:10.2]}
8... Ba6 {[%clk 0:03:03.3]} 9. Nd2 {[%clk 0:03:11.4]} 9... g6 {[%clk 0:02:53.8]}
10. Nf3 {[%clk 0:03:09.5]} 10... Bg7 {[%clk 0:02:53.4]} 11. Bg5 {[%clk
0:03:10.2]} 11... Qb4+ {[%clk 0:02:48.4]} 12. Qd2 {[%clk 0:03:10.8]} 12... Qxd2+
{[%clk 0:02:43.3]} 13. Bxd2 {[%clk 0:03:10.8]} 13... Ne7 {[%clk 0:02:40]} 14.
O-O-O {[%clk 0:03:03.8]} 14... h6 {[%clk 0:02:31.7]} 15. h4 {[%clk 0:02:59.2]}
15... O-O-O {[%clk 0:02:28.7]} 16. Be3 {[%clk 0:02:12.9]} 16... Kb7 {[%clk
0:02:23.6]} 17. Rd3 {[%clk 0:01:54.8]} 17... Nf5 {[%clk 0:02:23]} 18. Rb3+
{[%clk 0:01:53]} 18... Ka8 {[%clk 0:02:22.1]} 19. Bd2 {[%clk 0:01:49.5]} 19...
c5 {[%clk 0:02:16.8]} 20. g4 {[%clk 0:01:48.3]} 20... Ne7 {[%clk 0:02:09]} 21.
Bg2 {[%clk 0:01:11.5]} 21... Nc6 {[%clk 0:02:07]} 22. Be3 {[%clk 0:01:10.2]}
22... Bf8 {[%clk 0:01:52.1]} 23. Rd1 {[%clk 0:01:09.5]} 23... Bxc4 {[%clk
0:01:50.9]} 24. Rc3 {[%clk 0:01:06.9]} 24... Be6 {[%clk 0:01:48.3]} 25. Bxc5
{[%clk 0:01:07.6]} 25... Bxc5 {[%clk 0:01:47.1]} 26. Rxc5 {[%clk 0:01:08.5]}
26... Bxg4 {[%clk 0:01:48.2]} 27. Rd3 {[%clk 0:01:05]} 27... Kb8 {[%clk
0:01:40.2]} 28. Nd4 {[%clk 0:01:01.9]} 28... Nxd4 {[%clk 0:01:27.5]} 29. Rxd4
{[%clk 0:01:02]} 29... Be6 {[%clk 0:01:04.5]} 30. Rb4+ {[%clk 0:00:43.7]} 30...
Kc8 {[%clk 0:01:05.1]} 31. Bb7+ {[%clk 0:00:44.1]} 31... Kb8 {[%clk 0:01:05.8]}
32. Ba6+ {[%clk 0:00:32]} 32... Ka8 {[%clk 0:01:04.6]} 33. Rxc7 {[%clk
0:00:32.4]} 33... Bd5 {[%clk 0:00:58.6]} 34. Bb7+ {[%clk 0:00:30.9]} 34... Bxb7
{[%clk 0:00:59.4]} 35. Rbxb7 {[%clk 0:00:31.6]} 35... Rc8 {[%clk 0:00:57.4]} 36.
Rxa7+ {[%clk 0:00:29.7]} 36... Kb8 {[%clk 0:00:57.9]} 37. Rb7+ {[%clk
0:00:30.6]} 37... Ka8 {[%clk 0:00:59]} 38. Kd2 {[%clk 0:00:30.6]} 38... Rxc7
{[%clk 0:00:56.1]} 39. Rxc7 {[%clk 0:00:31.6]} 39... Rd8 {[%clk 0:00:56.5]} 40.
Rc5 {[%clk 0:00:25]} 40... Kb7 {[%clk 0:00:56.6]} 41. b4 {[%clk 0:00:23.4]}
41... Ra8 {[%clk 0:00:56.5]} 42. Rc2 {[%clk 0:00:23.4]} 42... Ra4 {[%clk
0:00:51.6]} 43. Rb2 {[%clk 0:00:23.4]} 43... Ra3 {[%clk 0:00:52.8]} 44. Ke2
{[%clk 0:00:21.9]} 44... Rh3 {[%clk 0:00:53.4]} 45. a4 {[%clk 0:00:16]} 45...
Rxh4 {[%clk 0:00:54.4]} 46. Ke3 {[%clk 0:00:17.1]} 46... g5 {[%clk 0:00:50.5]}
47. a5 {[%clk 0:00:15.3]} 47... Rf4 {[%clk 0:00:46.5]} 48. b5 {[%clk 0:00:15.6]}
48... Ra4 {[%clk 0:00:47.4]} 49. a6+ {[%clk 0:00:16.4]} 49... Kb6 {[%clk
0:00:48.2]} 50. Kd3 {[%clk 0:00:11.4]} 50... h5 {[%clk 0:00:48.2]} 51. Ke3
{[%clk 0:00:12.9]} 51... h4 {[%clk 0:00:49.3]} 52. Kf3 {[%clk 0:00:14.2]} 52...
Rf4+ {[%clk 0:00:48.9]} 53. Kg2 {[%clk 0:00:14.4]} 53... g4 {[%clk 0:00:49.9]}
54. Rd2 {[%clk 0:00:11.3]} 54... Kxb5 {[%clk 0:00:49.5]} 55. a7 {[%clk
0:00:11.8]} 55... Ra4 {[%clk 0:00:46]} 56. Rxd7 {[%clk 0:00:12.5]} 56... Kb6
{[%clk 0:00:47]} 57. Rxf7 {[%clk 0:00:13.2]} 57... Kc6 {[%clk 0:00:47.8]} 58. e6
{[%clk 0:00:14.3]} 58... Kd6 {[%clk 0:00:46.2]} 59. e7 {[%clk 0:00:15.6]} 59...
Kd7 {[%clk 0:00:45.3]} 60. Rf8 {[%clk 0:00:16.4]} 60... h3+ {[%clk 0:00:39.1]}
61. Kh2 {[%clk 0:00:17.2]} 61... Kxe7 {[%clk 0:00:28.4]} 62. a8=Q {[%clk
0:00:17.4]} 1-0